fUST/lending_fUST_20250626
["ID","MTS","AMOUNT","RATE_DAILY","PERIOD"]
[367746948,1750914638884,-471.59760005,0.00016993,2]
[367746949,1750914638894,-460.0,0.00016993,2]
[367746950,1750914638904,-460.0,0.00016993,2]
[367746951,1750914638915,-167.0,0.00016993,2]
[367746952,1750914638925,-460.0,0.00016993,2]
[367746953,1750914638935,-460.0,0.00016993,2]
[367746954,1750914638946,-460.0,0.00016993,2]
[367746955,1750914638956,-460.0,0.00016993,2]
[367746956,1750914638966,-460.0,0.00016993,2]
[367746957,1750914638975,-460.0,0.00016993,2]
[367746958,1750914638986,-460.0,0.00016993,2]
[367746959,1750914638995,-460.0,0.00016993,2]
[367746960,1750914639006,-460.0,0.00016993,2]
[367746961,1750914639016,-387.86468317,0.00016993,2]
[367746962,1750914639029,-72.13531683,0.00016993,2]
[367746963,1750914639038,-460.0,0.00016993,2]
[367746964,1750914639049,-1171.88,0.00016993,2]
[367746965,1750914639059,-466.33750743,0.00016993,2]
[367746966,1750914639068,-458.86277297,0.00016993,2]
[367746967,1750914639078,-460.0,0.00017265,2]
[367746968,1750914639088,-460.0,0.00017265,2]
[367746969,1750914639098,-460.0,0.00017265,2]
[367746970,1750914639108,-460.0,0.00017265,2]
[367746971,1750914639117,-460.0,0.00017265,2]
[367746972,1750914639128,-119.36824455,0.00017265,2]
[367746973,1750914639140,-340.63175545,0.00017265,2]
[367746974,1750914639150,-326.95627969,0.00017265,2]
[367747354,1750914643767,-460.0,0.00016698,2]
[367747356,1750914643778,-460.0,0.00016972,2]
[367747358,1750914643788,-460.0,0.00017246,2]
[367747360,1750914643798,-133.04372031,0.00017265,2]
[367747362,1750914643808,-460.0,0.00017265,2]
[367747364,1750914643818,-460.0,0.00017265,2]
[367747366,1750914643828,-405.83033588,0.00017265,2]
[367747368,1750914643838,-591.54,0.00017265,2]
[367747370,1750914643848,-460.0,0.00017265,2]
[367747372,1750914643857,-460.0,0.00017265,2]
[367747374,1750914643867,-460.0,0.00017266,2]
[367747376,1750914643877,-466.81616849,0.00017266,2]
[367747379,1750914643887,-460.0,0.00017266,2]
[367747381,1750914643896,-589.37832938,0.00017266,2]
[367747383,1750914643906,-460.0,0.00017266,2]
[367747385,1750914643915,-460.0,0.00017266,2]
[367747387,1750914643924,-488.18,0.00017266,2]
[367747389,1750914643935,-460.0,0.00017266,2]
[367747391,1750914643945,-460.0,0.00017266,2]
[367747393,1750914643955,-460.0,0.00017266,2]
[367747395,1750914643964,-460.0,0.00017266,2]
[367747397,1750914643974,-205.83360941,0.00017266,2]
[367747684,1750914646811,-254.16639059,0.00017266,2]
[367747686,1750914646821,-460.0,0.00017266,2]
[367747688,1750914646831,-540.23,0.00017266,2]
[367747690,1750914646841,-460.0,0.00017266,2]
[367747692,1750914646850,-526.47,0.00017266,2]
[367747695,1750914646860,-460.0,0.00017266,2]
[367747696,1750914646869,-460.0,0.00017266,2]
[367747698,1750914646880,-460.0,0.00017266,2]
[367747700,1750914646889,-87.19396051,0.00017266,2]
[367749533,1750914901117,354.286755,0.00013699,2]
[367749534,1750914920998,2835.52252922,0.00025004,120]
[367749538,1750915548974,24900.0,0.00015912,2]
[367749543,1750915603310,5000.0,0.00023,34]
[367749581,1750915831994,-300.0,0.00016695,2]
[367749583,1750915832004,-174.0,0.00016695,2]
[367749585,1750915832014,-229.0,0.00016695,2]
[367749587,1750915832023,-194.0,0.00016695,2]
[367749589,1750915832032,-581.0,0.00016696,2]
[367749591,1750915832042,-460.0,0.00016696,2]
[367749593,1750915832051,-460.0,0.00016696,2]
[367749595,1750915832060,-473.78,0.00016696,2]
[367749597,1750915832070,-460.0,0.00016696,2]
[367749599,1750915832079,-460.0,0.00016696,2]
[367749601,1750915832088,-460.0,0.00016696,2]
[367749603,1750915832098,-8384.40162365,0.00016697,2]
[367749605,1750915832107,-460.0,0.00016697,2]
[367749607,1750915832116,-426.13961418,0.00016697,2]
[367749608,1750915832125,-442.01088159,0.00016697,2]
[367749610,1750915832135,-460.0,0.00016697,2]
[367749613,1750915832144,-273.59,0.00016697,2]
[367749614,1750915832153,-460.0,0.00016697,2]
[367749615,1750915832163,-460.0,0.00016697,2]
[367749616,1750915832172,-460.0,0.00016697,2]
[367749617,1750915832181,-460.0,0.00016697,2]
[367749618,1750915832191,-460.0,0.00016697,2]
[367749619,1750915832200,-460.0,0.00016697,2]
[367749620,1750915832210,-460.0,0.00016697,2]
[367749621,1750915832219,-601.65531892,0.00016697,2]
[367749622,1750915832228,-460.0,0.00016697,2]
[367749623,1750915832237,-460.84,0.00016697,2]
[367749624,1750915832247,-460.0,0.00016697,2]
[367749625,1750915832256,-460.0,0.00016697,2]
[367749626,1750915832265,-460.0,0.00016697,2]
[367749627,1750915832275,-460.0,0.00016697,2]
[367749628,1750915832284,-460.0,0.00016697,2]
[367749629,1750915832293,-460.0,0.00016697,2]
[367749630,1750915832303,-460.0,0.00016697,2]
[367749631,1750915832312,-460.0,0.00016697,2]
[367749632,1750915832322,-460.0,0.00016697,2]
[367749633,1750915832331,-460.0,0.00016697,2]
[367749634,1750915832341,-460.0,0.00016697,2]
[367749635,1750915832350,-460.0,0.00016697,2]
[367749636,1750915832360,-563.09,0.00016697,2]
[367749637,1750915832369,-460.0,0.00016697,2]
[367749638,1750915832379,-460.0,0.00016697,2]
[367749639,1750915832389,-460.0,0.00016697,2]
[367749640,1750915832399,-592.07,0.00016697,2]
[367749641,1750915832413,-604.46921883,0.00016697,2]
[367749642,1750915832423,-570.28030809,0.00016697,2]
[367749643,1750915832432,-460.0,0.00016697,2]
[367749644,1750915832443,-460.0,0.00016697,2]
[367749645,1750915832451,-484.91742984,0.00016698,2]
[367749646,1750915832461,-465.43434267,0.00016698,2]
[367749647,1750915832470,-460.0,0.00016698,2]
[367749648,1750915832480,-530.04,0.00016698,2]
[367749649,1750915832489,-460.0,0.00016698,2]
[367749650,1750915832499,-467.40313312,0.00016698,2]
[367749651,1750915832509,-462.64495919,0.00016698,2]
[367749652,1750915832518,-460.0,0.00016698,2]
[367749653,1750915832528,-460.0,0.00016698,2]
[367749654,1750915832537,-460.0,0.00016698,2]
[367749655,1750915832547,-460.0,0.00016698,2]
[367749656,1750915832556,-465.7225414,0.00016698,2]
[367749657,1750915832566,-460.0,0.00016698,2]
[367749658,1750915832575,-460.0,0.00016698,2]
[367749659,1750915832585,-460.0,0.00016698,2]
[367749660,1750915832594,-1123.05,0.00016698,2]
[367749661,1750915832604,-248.61006371,0.00016698,2]
[367749662,1750915832613,-533.78,0.00016698,2]
[367749663,1750915832624,-274.56791661,0.00016698,2]
[367749664,1750915832726,-52.87561546,0.00016698,2]
[367749665,1750915832736,-465.83900322,0.00016698,2]
[367749666,1750915832745,-460.0,0.00016698,2]
[367749667,1750915832755,-460.0,0.00016698,2]
[367749668,1750915832764,-463.58215992,0.00016698,2]
[367749669,1750915832774,-492.31,0.00016698,2]
[367749670,1750915832784,-460.0,0.00016698,2]
[367749671,1750915832793,-460.0,0.00016698,2]
[367749672,1750915832802,-460.0,0.00016698,2]
[367749673,1750915832812,-460.0,0.00016698,2]
[367749674,1750915832821,-460.0,0.00016698,2]
[367749675,1750915832831,-460.0,0.00016698,2]
[367749676,1750915832841,-317.72299299,0.00016698,2]
[367749677,1750915832850,-460.0,0.0001697,2]
[367749678,1750915832860,-460.0,0.0001697,2]
[367749679,1750915832869,-460.0,0.0001697,2]
[367749680,1750915832879,-290.40194816,0.00016971,2]
[367749686,1750915837982,-467.27365498,0.00016697,2]
[367749687,1750915837992,-460.0,0.00016697,2]
[367749688,1750915838001,-169.59805184,0.00016971,2]
[367749689,1750915838011,-597.17,0.00016971,2]
[367749690,1750915838020,-460.0,0.00016971,2]
[367749691,1750915838029,-460.0,0.00016971,2]
[367749692,1750915838039,-460.0,0.00016971,2]
[367749693,1750915838059,-460.84,0.00016971,2]
[367749694,1750915838069,-460.0,0.00016971,2]
[367749695,1750915838080,-460.0,0.00016971,2]
[367749696,1750915838090,-184.67,0.00016971,2]
[367749697,1750915838099,-165.44829316,0.00016971,2]
[367749698,1750915838125,-294.55170684,0.00016971,2]
[367749699,1750915838136,-460.0,0.00016971,2]
[367749700,1750915838145,-460.0,0.00016971,2]
[367749701,1750915838155,-460.0,0.00016971,2]
[367749702,1750915838164,-243.5477367,0.00016971,2]
[367749703,1750915838182,-216.4522633,0.00016971,2]
[367749704,1750915838192,-153.68,0.00016971,2]
[367749705,1750915838202,-460.0,0.00016971,2]
[367749708,1750915838211,-460.0,0.00016971,2]
[367749710,1750915838220,-460.0,0.00016971,2]
[367749711,1750915838230,-460.0,0.00016971,2]
[367749713,1750915838239,-460.0,0.00016971,2]
[367749714,1750915838249,-460.0,0.00016971,2]
[367749715,1750915838259,-460.0,0.00016971,2]
[367749716,1750915838268,-460.0,0.00016971,2]
[367749717,1750915838277,-460.0,0.00016972,2]
[367749718,1750915838287,-460.0,0.00016972,2]
[367749719,1750915838297,-460.0,0.00016972,2]
[367749720,1750915838307,-460.0,0.00016972,2]
[367749721,1750915838317,-460.0,0.00016972,2]
[367749722,1750915838326,-1123.05,0.00016972,2]
[367749723,1750915838336,-460.0,0.00016972,2]
[367749724,1750915838346,-187.41,0.00016972,2]
[367749725,1750915838356,-460.0,0.00016972,2]
[367749726,1750915838365,-498.71,0.00016972,2]
[367749727,1750915838375,-460.0,0.00016972,2]
[367749728,1750915838385,-460.0,0.00016972,2]
[367749729,1750915838394,-460.0,0.00016972,2]
[367749730,1750915838404,-414.59811191,0.00017132,2]
[367749731,1750915838414,-158.81,0.00017244,2]
[367749732,1750915838423,-460.0,0.00017244,2]
[367749733,1750915838433,-460.0,0.00017244,2]
[367749734,1750915838442,-523.34982942,0.00017245,2]
[367749735,1750915838452,-468.35989221,0.00017245,2]
[367749736,1750915838462,-459.56627832,0.00017245,2]
[367749737,1750915838471,-460.0,0.00017245,2]
[367749738,1750915838481,-468.50187781,0.00017245,2]
[367749739,1750915838490,-472.00361962,0.00017245,2]
[367749740,1750915838682,-471.67652445,0.00017245,2]
[367749741,1750915838700,-460.0,0.00017245,2]
[367749742,1750915838710,-460.0,0.00017245,2]
[367749744,1750915838720,-465.51518134,0.00017245,2]
[367749746,1750915838729,-315.33797901,0.00017245,2]
[367749748,1750915838738,-177.38416098,0.00017245,2]
[367749749,1750915838747,-460.0,0.00017245,2]
[367749751,1750915838757,-460.0,0.00017245,2]
[367749753,1750915838766,-460.0,0.00017245,2]
[367749756,1750915838776,-460.0,0.00017245,2]
[367749758,1750915838785,-460.0,0.00017245,2]
[367749760,1750915838794,-460.0,0.00017245,2]
[367749761,1750915838803,-460.0,0.00017245,2]
[367749763,1750915838812,-460.0,0.00017245,2]
[367749764,1750915838821,-460.0,0.00017245,2]
[367749765,1750915838830,-155.92188412,0.00017245,2]
[367749766,1750915838839,-460.0,0.00017245,2]
[367749767,1750915838848,-460.0,0.00017245,2]
[367749768,1750915838858,-460.0,0.00017245,2]
[367749769,1750915838867,-460.0,0.00017245,2]
[367749770,1750915838876,-460.0,0.00017245,2]
[367749771,1750915838885,-460.0,0.00017245,2]
[367749772,1750915838894,-466.31,0.00017245,2]
[367749773,1750915838904,-460.0,0.00017245,2]
[367749774,1750915838913,-460.0,0.00017245,2]
[367749775,1750915838922,-460.0,0.00017245,2]
[367749776,1750915838932,-460.0,0.00017245,2]
[367749777,1750915838942,-460.0,0.00017245,2]
[367749778,1750915838951,-460.0,0.00017245,2]
[367749779,1750915838961,-460.0,0.00017245,2]
[367749780,1750915838971,-460.0,0.00017245,2]
[367749781,1750915838980,-460.0,0.00017245,2]
[367749782,1750915838990,-460.0,0.00017245,2]
[367749783,1750915838999,-460.0,0.00017245,2]
[367749784,1750915839008,-460.0,0.00017245,2]
[367749785,1750915839018,-460.0,0.00017245,2]
[367749786,1750915839027,-460.0,0.00017245,2]
[367749787,1750915839036,-460.0,0.00017245,2]
[367749788,1750915839045,-288.84325241,0.00017245,2]
[367749789,1750915839063,-171.15674759,0.00017245,2]
[367749790,1750915839073,-465.88682449,0.00017245,2]
[367749791,1750915839082,-460.0,0.00017245,2]
[367749792,1750915839091,-460.84,0.00017245,2]
[367749793,1750915839100,-460.0,0.00017245,2]
[367749794,1750915839109,-460.0,0.00017245,2]
[367749795,1750915839118,-460.0,0.00017245,2]
[367749796,1750915839127,-460.0,0.00017245,2]
[367749797,1750915839137,-460.0,0.00017245,2]
[367749798,1750915839147,-460.0,0.00017245,2]
[367749799,1750915839157,-460.0,0.00017245,2]
[367749800,1750915839166,-460.0,0.00017245,2]
[367749801,1750915839177,-566.49,0.00017245,2]
[367749802,1750915839186,-466.35183214,0.00017245,2]
[367749803,1750915839198,-460.0,0.00017245,2]
[367749804,1750915839208,-465.30323641,0.00017245,2]
[367749805,1750915839218,-460.0,0.00017245,2]
[367749806,1750915839227,-460.0,0.00017245,2]
[367749807,1750915839237,-460.0,0.00017245,2]
[367749808,1750915839247,-460.0,0.00017245,2]
[367749809,1750915839256,-460.0,0.00017245,2]
[367749810,1750915839266,-477.7,0.00017245,2]
[367749811,1750915839275,-460.0,0.00017245,2]
[367749812,1750915839284,-460.0,0.00017245,2]
[367749813,1750915839297,-460.0,0.00017245,2]
[367749814,1750915839307,-460.0,0.00017245,2]
[367749815,1750915839316,-500.0,0.00017245,2]
[367749816,1750915839325,-204.37,0.00017245,2]
[367749817,1750915839335,-460.0,0.00017245,2]
[367749818,1750915839346,-460.0,0.00017245,2]
[367749819,1750915839355,-460.0,0.00017245,2]
[367749820,1750915839365,-460.0,0.00017245,2]
[367749821,1750915839375,-460.0,0.00017245,2]
[367749822,1750915839385,-460.0,0.00017245,2]
[367749823,1750915839395,-460.0,0.00017245,2]
[367749824,1750915839404,-460.0,0.00017245,2]
[367749825,1750915839414,-460.0,0.00017245,2]
[367749826,1750915839423,-460.0,0.00017245,2]
[367749827,1750915839433,-256.00630717,0.00017245,2]
[367749828,1750915839442,-460.0,0.00017245,2]
[367749829,1750915839452,-460.0,0.00017245,2]
[367749831,1750915839461,-460.0,0.00017245,2]
[367749832,1750915839471,-460.0,0.00017245,2]
[367749834,1750915839481,-460.0,0.00017245,2]
[367749836,1750915839491,-460.0,0.00017245,2]
[367749838,1750915839500,-460.0,0.00017245,2]
[367749840,1750915839509,-460.0,0.00017245,2]
[367749842,1750915839519,-460.0,0.00017245,2]
[367749844,1750915839528,-460.0,0.00017245,2]
[367749846,1750915839537,-460.0,0.00017245,2]
[367749848,1750915839546,-460.0,0.00017245,2]
[367749850,1750915839556,-470.27346394,0.00017245,2]
[367749851,1750915839565,-460.0,0.00017245,2]
[367749853,1750915839575,-460.0,0.00017245,2]
[367749855,1750915839584,-432.4893328,0.00017246,2]
[367749857,1750915839594,-460.0,0.00017246,2]
[367749859,1750915839603,-460.0,0.00017246,2]
[367749861,1750915839613,-460.0,0.00017246,2]
[367749863,1750915839622,-460.0,0.00017246,2]
[367749865,1750915839632,-1123.05,0.00017246,2]
[367749867,1750915839641,-236.35,0.00017246,2]
[367749869,1750915839651,-401.85,0.00017246,2]
[367749871,1750915839660,-565.80000629,0.00017264,2]
[367749873,1750915839671,-460.0,0.00017265,2]
[367749875,1750915839680,-453.92584561,0.00017265,2]
[367749877,1750915839689,-460.0,0.00017265,2]
[367749879,1750915839699,-460.0,0.00017265,2]
[367749881,1750915839709,-463.19766414,0.00017265,2]
[367749883,1750915839719,-940.84,0.00017265,2]
[367749885,1750915839728,-460.0,0.00017265,2]
[367749887,1750915839738,-450.36509458,0.00017265,2]
[367749889,1750915839747,-460.0,0.00017265,2]
[367749891,1750915839758,-460.0,0.00017265,2]
[367749893,1750915839767,-460.0,0.00017265,2]
[367749895,1750915839777,-460.0,0.00017265,2]
[367749897,1750915839787,-460.0,0.00017265,2]
[367749900,1750915839795,-460.0,0.00017265,2]
[367749902,1750915839805,-460.0,0.00017265,2]
[367749904,1750915839814,-460.0,0.00017265,2]
[367749905,1750915839823,-460.0,0.00017265,2]
[367749907,1750915839832,-460.0,0.00017265,2]
[367749909,1750915839841,-460.0,0.00017265,2]
[367749911,1750915839851,-460.0,0.00017265,2]
[367749913,1750915839860,-460.0,0.00017265,2]
[367749915,1750915839870,-460.0,0.00017265,2]
[367749916,1750915839879,-460.0,0.00017265,2]
[367749917,1750915839889,-460.0,0.00017265,2]
[367749918,1750915839898,-460.0,0.00017265,2]
[367749919,1750915839907,-460.0,0.00017265,2]
[367749920,1750915839916,-460.0,0.00017265,2]
[367749921,1750915839926,-495.51,0.00017265,2]
[367749923,1750915839934,-460.0,0.00017265,2]
[367749925,1750915839944,-460.0,0.00017265,2]
[367749927,1750915839953,-460.0,0.00017265,2]
[367749929,1750915839962,-460.0,0.00017265,2]
[367749931,1750915839977,-460.0,0.00017265,2]
[367749934,1750915839991,-460.0,0.00017265,2]
[367749936,1750915840001,-460.0,0.00017265,2]
[367749938,1750915840011,-460.0,0.00017265,2]
[367749940,1750915840020,-460.0,0.00017265,2]
[367749942,1750915840030,-460.0,0.00017265,2]
[367749944,1750915840040,-426.75246136,0.00017266,2]
[367749946,1750915840050,-325.57677068,0.00017266,2]
[367749948,1750915840060,-460.0,0.00017266,2]
[367749950,1750915840070,-541.3113158,0.00017335,2]
[367749952,1750915840080,-460.0,0.00017518,2]
[367749954,1750915840090,-460.0,0.00017518,2]
[367749956,1750915840099,-460.0,0.00017519,2]
[367749958,1750915840109,-516.12,0.00017519,2]
[367749960,1750915840119,-460.0,0.00017519,2]
[367749963,1750915840129,-576.32635838,0.00017519,2]
[367749965,1750915840139,-460.0,0.00017519,2]
[367749967,1750915840149,-460.0,0.00017519,2]
[367749969,1750915840158,-460.0,0.00017519,2]
[367749971,1750915840168,-460.0,0.00017519,2]
[367749973,1750915840178,-460.0,0.00017519,2]
[367749975,1750915840188,-460.0,0.00017519,2]
[367749977,1750915840199,-460.0,0.00017519,2]
[367749979,1750915840208,-460.0,0.00017519,2]
[367749981,1750915840218,-460.0,0.00017519,2]
[367749983,1750915840228,-460.0,0.00017519,2]
[367749986,1750915840237,-460.0,0.00017519,2]
[367749988,1750915840247,-460.0,0.00017519,2]
[367749990,1750915840257,-460.84,0.00017519,2]
[367749992,1750915840267,-460.0,0.00017519,2]
[367749994,1750915840276,-460.0,0.00017519,2]
[367749995,1750915840285,-460.0,0.00017519,2]
[367749997,1750915840294,-460.0,0.00017519,2]
[367749999,1750915840304,-460.0,0.00017519,2]
[367750001,1750915840313,-460.0,0.00017519,2]
[367750003,1750915840322,-460.0,0.00017519,2]
[367750005,1750915840332,-460.0,0.00017519,2]
[367750007,1750915840341,-460.0,0.00017519,2]
[367750009,1750915840351,-460.0,0.00017519,2]
[367750011,1750915840360,-460.0,0.00017519,2]
[367750013,1750915840370,-194.8,0.00017519,2]
[367750015,1750915840380,-460.0,0.00017519,2]
[367750017,1750915840389,-460.0,0.00017519,2]
[367750019,1750915840399,-460.0,0.00017519,2]
[367750020,1750915840408,-460.0,0.00017519,2]
[367750022,1750915840417,-460.0,0.00017519,2]
[367750024,1750915840427,-198.46,0.00017519,2]
[367750026,1750915840436,-460.0,0.00017519,2]
[367750028,1750915840447,-460.0,0.00017519,2]
[367750030,1750915840457,-460.0,0.00017519,2]
[367750032,1750915840467,-460.0,0.00017519,2]
[367750034,1750915840476,-460.0,0.00017519,2]
[367750036,1750915840486,-460.0,0.00017519,2]
[367750038,1750915840496,-460.0,0.00017519,2]
[367750040,1750915840506,-460.0,0.00017519,2]
[367750042,1750915840515,-460.0,0.00017519,2]
[367750044,1750915840525,-460.0,0.00017519,2]
[367750046,1750915840535,-460.0,0.00017519,2]
[367750048,1750915840545,-566.54,0.00017519,2]
[367750049,1750915840555,-460.0,0.00017519,2]
[367750050,1750915840564,-460.0,0.0001752,2]
[367750051,1750915840574,-460.0,0.0001752,2]
[367750052,1750915840583,-301.16,0.0001752,2]
[367750054,1750915840593,-460.0,0.0001752,2]
[367750056,1750915840602,-1123.05,0.0001752,2]
[367750058,1750915840612,-420.0,0.00017539,2]
[367750060,1750915840621,-940.84,0.00017539,2]
[367750062,1750915840631,-460.0,0.00017539,2]
[367750064,1750915840641,-390.22967261,0.00017539,2]
[367750066,1750915840650,-460.0,0.00017539,2]
[367750068,1750915840659,-460.0,0.00017539,2]
[367750070,1750915840668,-460.0,0.00017539,2]
[367750072,1750915840678,-467.18,0.00017539,2]
[367750074,1750915840687,-460.0,0.00017539,2]
[367750076,1750915840697,-460.0,0.00017539,2]
[367750078,1750915840706,-460.0,0.00017539,2]
[367750080,1750915840717,-460.0,0.00017539,2]
[367750082,1750915840727,-460.0,0.00017539,2]
[367750084,1750915840738,-460.0,0.00017539,2]
[367750086,1750915840748,-460.0,0.00017539,2]
[367750088,1750915840758,-460.0,0.00017539,2]
[367750090,1750915840768,-460.0,0.00017539,2]
[367750092,1750915840777,-460.0,0.00017539,2]
[367750094,1750915840786,-495.51,0.00017539,2]
[367750096,1750915840796,-460.0,0.00017539,2]
[367750097,1750915840806,-478.38,0.00017539,2]
[367750099,1750915840816,-468.83658299,0.00017539,2]
[367750101,1750915840826,-460.0,0.00017539,2]
[367750103,1750915840835,-460.0,0.00017539,2]
[367750105,1750915840845,-307.77,0.0001754,2]
[367750107,1750915840854,-460.0,0.0001754,2]
[367750109,1750915840863,-460.0,0.0001754,2]
[367750111,1750915840872,-460.0,0.00017792,2]
[367750113,1750915840882,-460.0,0.00017792,2]
[367750115,1750915840891,-460.0,0.00017793,2]
[367750117,1750915840901,-460.0,0.00017793,2]
[367750119,1750915840911,-460.0,0.00017793,2]
[367750121,1750915840920,-460.0,0.00017793,2]
[367750123,1750915840929,-460.0,0.00017793,2]
[367750124,1750915840938,-1123.05,0.00017793,2]
[367750126,1750915840948,-244.18,0.00017793,2]
[367750128,1750915840958,-212.36,0.00017793,2]
[367750130,1750915840968,-460.0,0.00017793,2]
[367750132,1750915840977,-460.0,0.00017793,2]
[367750134,1750915840986,-460.0,0.00017793,2]
[367750136,1750915840996,-460.63,0.00017793,2]
[367750138,1750915841005,-215.06391342,0.00017793,2]
[367750140,1750915841015,-460.0,0.00017793,2]
[367750142,1750915841024,-460.0,0.00017793,2]
[367750144,1750915841034,-460.0,0.00017793,2]
[367750146,1750915841043,-460.0,0.00017793,2]
[367750148,1750915841052,-460.84,0.00017793,2]
[367750150,1750915841062,-460.0,0.00017793,2]
[367750152,1750915841072,-460.0,0.00017793,2]
[367750154,1750915841081,-460.0,0.00017793,2]
[367750156,1750915841090,-460.0,0.00017793,2]
[367750158,1750915841099,-460.0,0.00017793,2]
[367750159,1750915841108,-460.0,0.00017793,2]
[367750161,1750915841118,-460.0,0.00017793,2]
[367750163,1750915841127,-594.6,0.00017793,2]
[367750165,1750915841136,-585.76,0.00017793,2]
[367750167,1750915841145,-460.0,0.00017793,2]
[367750169,1750915841155,-460.0,0.00017793,2]
[367750171,1750915841164,-295.16,0.00017793,2]
[367750173,1750915841173,-460.0,0.00017793,2]
[367750174,1750915841182,-460.0,0.00017793,2]
[367750175,1750915841191,-460.0,0.00017793,2]
[367750176,1750915841201,-489.04,0.00017793,2]
[367750177,1750915841210,-460.0,0.00017793,2]
[367750179,1750915841219,-460.0,0.00017793,2]
[367750181,1750915841228,-460.0,0.00017793,2]
[367750183,1750915841237,-460.0,0.00017793,2]
[367750185,1750915841246,-460.0,0.00017793,2]
[367750187,1750915841256,-460.0,0.00017793,2]
[367750189,1750915841265,-460.0,0.00017793,2]
[367750191,1750915841272,-460.0,0.00017793,2]
[367750193,1750915841281,-460.0,0.00017793,2]
[367750195,1750915841295,-460.0,0.00017793,2]
[367750197,1750915841304,-460.0,0.00017793,2]
[367750198,1750915841313,-500.0,0.00017808,2]
[367750200,1750915841322,-500.0,0.00017808,2]
[367750202,1750915841332,-940.84,0.00017813,2]
[367750204,1750915841342,-460.0,0.00017813,2]
[367750206,1750915841351,-460.0,0.00017813,2]
[367750208,1750915841360,-460.0,0.00017813,2]
[367750210,1750915841371,-460.0,0.00017813,2]
[367750212,1750915841380,-460.0,0.00017813,2]
[367750214,1750915841391,-460.0,0.00017813,2]
[367750216,1750915841401,-460.0,0.00017813,2]
[367750218,1750915841410,-460.0,0.00017813,2]
[367750219,1750915841420,-460.0,0.00017813,2]
[367750221,1750915841430,-460.0,0.00017813,2]
[367750223,1750915841440,-460.0,0.00017813,2]
[367750225,1750915841450,-495.51,0.00017813,2]
[367750228,1750915841461,-460.0,0.00017813,2]
[367750229,1750915841470,-218.53,0.00017813,2]
[367750231,1750915841479,-501.61,0.00017813,2]
[367750233,1750915841489,-460.0,0.00017814,2]
[367750235,1750915841499,-460.0,0.00017814,2]
[367750237,1750915841510,-418.47240693,0.000179,2]
[367750239,1750915841519,-1733.23535127,0.00017987,2]
[367750241,1750915841529,-460.0,0.00018066,2]
[367750243,1750915841539,-460.0,0.00018066,2]
[367750245,1750915841548,-460.0,0.00018067,2]
[367750247,1750915841558,-460.0,0.00018067,2]
[367750249,1750915841568,-460.0,0.00018067,2]
[367750251,1750915841577,-1123.05,0.00018067,2]
[367750253,1750915841587,-460.0,0.00018067,2]
[367750255,1750915841596,-460.0,0.00018067,2]
[367750257,1750915841606,-460.0,0.00018067,2]